[Event "Early-Titled-Tuesday-Blitz-March-26-2024"]
[Site "Chess.com"]
[Date "2024.03.26"]
[Round "9"]
[White "Witik"]
[Black "chess123456s"]
[Result "0-1"]
[WhiteElo "2732"]
[BlackElo "2587"]
[TimeControl "180+1"]
[EndTime "9:43:20 PDT"]
[Termination "chess123456s won by resignation"]

1. e4 {[%clk 0:02:59.3]} 1... e5 {[%clk 0:02:59.9]} 2. Nf3 {[%clk 0:02:59.3]}
2... Nc6 {[%clk 0:03:00.6]} 3. Nc3 {[%clk 0:02:58.6]} 3... Nf6 {[%clk
0:03:00.7]} 4. Bb5 {[%clk 0:02:58.1]} 4... Bb4 {[%clk 0:03:01.3]} 5. O-O {[%clk
0:02:57.9]} 5... O-O {[%clk 0:03:01.8]} 6. d3 {[%clk 0:02:58.3]} 6... Bxc3
{[%clk 0:03:02.4]} 7. bxc3 {[%clk 0:02:58.5]} 7... d6 {[%clk 0:03:02.9]} 8. a4
{[%clk 0:02:58.4]} 8... a6 {[%clk 0:03:02.1]} 9. Bxc6 {[%clk 0:02:44.3]} 9...
bxc6 {[%clk 0:03:03]} 10. h3 {[%clk 0:02:43.5]} 10... h6 {[%clk 0:03:02.6]} 11.
Re1 {[%clk 0:02:43.2]} 11... Rb8 {[%clk 0:02:58]} 12. d4 {[%clk 0:02:41.6]}
12... exd4 {[%clk 0:02:41.9]} 13. cxd4 {[%clk 0:02:41.5]} 13... Re8 {[%clk
0:02:41.9]} 14. e5 {[%clk 0:02:39.2]} 14... Nd5 {[%clk 0:02:41.6]} 15. Qd2
{[%clk 0:02:16]} 15... Bf5 {[%clk 0:02:34.6]} 16. Ba3 {[%clk 0:01:13.4]} 16...
Nb6 {[%clk 0:02:32.3]} 17. exd6 {[%clk 0:01:10.3]} 17... Rxe1+ {[%clk
0:02:29.1]} 18. Rxe1 {[%clk 0:01:09.5]} 18... cxd6 {[%clk 0:02:29.5]} 19. Qf4
{[%clk 0:01:09.2]} 19... Bxc2 {[%clk 0:02:17.8]} 20. Bxd6 {[%clk 0:01:08.5]}
20... Nd5 {[%clk 0:02:07.4]} 21. Qg3 {[%clk 0:01:08.7]} 21... Rb1 {[%clk
0:02:03.4]} 22. Rxb1 {[%clk 0:01:07.9]} 22... Bxb1 {[%clk 0:02:04.3]} 23. Bc5
{[%clk 0:01:01.3]} 23... Nc3 {[%clk 0:01:51.3]} 24. Qe5 {[%clk 0:00:29.9]} 24...
Nxa4 {[%clk 0:01:45.2]} 25. Be7 {[%clk 0:00:26.9]} 25... Qe8 {[%clk 0:01:36.2]}
26. Qc7 {[%clk 0:00:25.5]} 26... Be4 {[%clk 0:01:28.7]} 27. Ne5 {[%clk
0:00:24.4]} 27... Bd5 {[%clk 0:01:26.7]} 28. Bb4 {[%clk 0:00:17.2]} 28... Nb2
{[%clk 0:01:10.1]} 29. Qb6 {[%clk 0:00:08.8]} 29... f6 {[%clk 0:00:48.8]} 30.
Ng4 {[%clk 0:00:08.8]} 30... Nd3 {[%clk 0:00:47.3]} 31. Ba5 {[%clk 0:00:05.5]}
31... Nf4 {[%clk 0:00:43.1]} 32. Qc7 {[%clk 0:00:04.4]} 32... Nxg2 {[%clk
0:00:26.8]} 33. Qg3 {[%clk 0:00:03.3]} 33... Kh8 {[%clk 0:00:21.3]} 34. f3
{[%clk 0:00:03.6]} 34... Ne3 {[%clk 0:00:19.7]} 35. Bd2 {[%clk 0:00:03.8]} 35...
Nxg4 {[%clk 0:00:17.8]} 36. hxg4 {[%clk 0:00:03.6]} 36... Qe2 {[%clk 0:00:17.2]}
37. Qf2 {[%clk 0:00:04.1]} 37... Qxf3 {[%clk 0:00:16.8]} 0-1

[Event "Early-Titled-Tuesday-Blitz-March-26-2024"]
[Site "Chess.com"]
[Date "2024.03.26"]
[Round "9"]
[White "reevecanada"]
[Black "Slovineanu"]
[Result "1-0"]
[WhiteElo "2675"]
[BlackElo "2538"]
[TimeControl "180+1"]
[EndTime "9:43:20 PDT"]
[Termination "reevecanada won by resignation"]

1. e4 {[%clk 0:02:57.3]} 1... e5 {[%clk 0:02:59.4]} 2. Nf3 {[%clk 0:02:56.7]}
2... Nc6 {[%clk 0:02:57.8]} 3. b3 {[%clk 0:02:56.2]} 3... Bc5 {[%clk 0:02:54]}
4. Bb2 {[%clk 0:02:56]} 4... d6 {[%clk 0:02:54.3]} 5. Be2 {[%clk 0:02:55.6]}
5... Nf6 {[%clk 0:02:53.4]} 6. d3 {[%clk 0:02:54.2]} 6... O-O {[%clk 0:02:52.5]}
7. O-O {[%clk 0:02:54.7]} 7... a5 {[%clk 0:02:52.7]} 8. c3 {[%clk 0:02:54.7]}
8... Re8 {[%clk 0:02:43.1]} 9. Nbd2 {[%clk 0:02:52.4]} 9... Bb6 {[%clk
0:02:38.1]} 10. a3 {[%clk 0:02:48.9]} 10... d5 {[%clk 0:02:34.1]} 11. Qc2 {[%clk
0:02:45.3]} 11... dxe4 {[%clk 0:02:24.6]} 12. dxe4 {[%clk 0:02:42.3]} 12... Qe7
{[%clk 0:02:22]} 13. Nc4 {[%clk 0:02:39.4]} 13... Ba7 {[%clk 0:02:21]} 14. b4
{[%clk 0:02:38.8]} 14... b5 {[%clk 0:01:48.9]} 15. Nxa5 {[%clk 0:02:34.1]} 15...
Nxa5 {[%clk 0:01:48.8]} 16. bxa5 {[%clk 0:02:34.9]} 16... Bb7 {[%clk 0:01:42.3]}
17. Bd3 {[%clk 0:02:33.2]} 17... Bc5 {[%clk 0:01:36.6]} 18. c4 {[%clk
0:02:30.2]} 18... bxc4 {[%clk 0:01:31.7]} 19. Qxc4 {[%clk 0:02:28.8]} 19... Rxa5
{[%clk 0:01:22.1]} 20. Bxe5 {[%clk 0:02:25.2]} 20... Rxa3 {[%clk 0:01:09.1]} 21.
Rxa3 {[%clk 0:02:23.3]} 21... Bxa3 {[%clk 0:01:09.1]} 22. Bxf6 {[%clk
0:02:17.5]} 22... gxf6 {[%clk 0:01:01.3]} 23. Nh4 {[%clk 0:02:12.4]} 23... Bxe4
{[%clk 0:00:37.6]} 24. Re1 {[%clk 0:02:09.2]} 24... Bxd3 {[%clk 0:00:37.6]} 25.
Rxe7 {[%clk 0:02:02.7]} 25... Bxc4 {[%clk 0:00:37.4]} 26. Rxe8+ {[%clk
0:02:01.8]} 26... Kg7 {[%clk 0:00:37.3]} 27. Nf5+ {[%clk 0:01:57.5]} 27... Kg6
{[%clk 0:00:37.3]} 28. Ne7+ {[%clk 0:01:58.1]} 28... Kg5 {[%clk 0:00:35.6]} 29.
g3 {[%clk 0:01:57.2]} 29... Be6 {[%clk 0:00:25.2]} 30. Kg2 {[%clk 0:01:52.1]}
30... Bxe7 {[%clk 0:00:23]} 31. Rxe7 {[%clk 0:01:50.9]} 31... c5 {[%clk
0:00:23.4]} 32. Rc7 {[%clk 0:01:51.3]} 32... c4 {[%clk 0:00:24]} 33. Rc5+ {[%clk
0:01:51.7]} 33... Kg6 {[%clk 0:00:22.7]} 34. Kf3 {[%clk 0:01:52.2]} 34... h5
{[%clk 0:00:21.7]} 35. Kf4 {[%clk 0:01:52.5]} 35... Kh6 {[%clk 0:00:18.1]} 36.
h4 {[%clk 0:01:51]} 36... Kg6 {[%clk 0:00:18.2]} 37. f3 {[%clk 0:01:50.3]} 37...
Kh6 {[%clk 0:00:18.4]} 38. Ke4 {[%clk 0:01:48.1]} 38... Kg6 {[%clk 0:00:17]} 39.
Kd4 {[%clk 0:01:47.6]} 39... f5 {[%clk 0:00:15.2]} 40. Ke5 {[%clk 0:01:46]}
40... Kg7 {[%clk 0:00:15.1]} 41. Rc7 {[%clk 0:01:45]} 41... Kg6 {[%clk
0:00:15.2]} 42. Rc6 {[%clk 0:01:39.2]} 42... Kg7 {[%clk 0:00:14.9]} 43. Kd6
{[%clk 0:01:09.9]} 43... Kf6 {[%clk 0:00:14.6]} 44. Rc5 {[%clk 0:01:08.1]} 44...
f4 {[%clk 0:00:07.8]} 45. gxf4 {[%clk 0:01:06.9]} 45... Kg6 {[%clk 0:00:08]} 46.
Rg5+ {[%clk 0:01:05]} 46... Kf6 {[%clk 0:00:08.1]} 47. Rxh5 {[%clk 0:01:04.5]}
47... c3 {[%clk 0:00:07.6]} 48. Rc5 {[%clk 0:01:03.2]} 48... c2 {[%clk
0:00:07.1]} 49. Rxc2 {[%clk 0:00:59.5]} 49... Kf5 {[%clk 0:00:07.5]} 50. h5
{[%clk 0:00:57.6]} 50... Kxf4 {[%clk 0:00:07.8]} 51. h6 {[%clk 0:00:57.6]} 51...
Bf5 {[%clk 0:00:08.3]} 52. Rg2 {[%clk 0:00:55.2]} 52... Kxf3 {[%clk 0:00:05.2]}
53. Rg7 {[%clk 0:00:55.7]} 53... f6 {[%clk 0:00:05.1]} 54. h7 {[%clk 0:00:55.6]}
54... Bxh7 {[%clk 0:00:05]} 55. Rxh7 {[%clk 0:00:56.5]} 55... f5 {[%clk
0:00:05.6]} 56. Ke5 {[%clk 0:00:55.9]} 1-0

[Event "Early-Titled-Tuesday-Blitz-March-26-2024"]
[Site "Chess.com"]
[Date "2024.03.26"]
[Round "9"]
[White "mary-sanna"]
[Black "orkinyo12345"]
[Result "0-1"]
[WhiteElo "2220"]
[BlackElo "2525"]
[TimeControl "180+1"]
[EndTime "9:43:25 PDT"]
[Termination "orkinyo12345 won on time"]

1. d4 {[%clk 0:02:58.2]} 1... d6 {[%clk 0:02:35.5]} 2. Nf3 {[%clk 0:02:56.2]}
2... Nf6 {[%clk 0:02:35.5]} 3. Nc3 {[%clk 0:02:41.5]} 3... g6 {[%clk 0:02:28.7]}
4. e4 {[%clk 0:02:28]} 4... Bg7 {[%clk 0:02:23.6]} 5. h3 {[%clk 0:02:26.2]} 5...
O-O {[%clk 0:02:15.8]} 6. Bg5 {[%clk 0:02:25.6]} 6... h6 {[%clk 0:02:08.8]} 7.
Be3 {[%clk 0:02:24.7]} 7... a6 {[%clk 0:02:08.6]} 8. Qd2 {[%clk 0:02:24.5]} 8...
Kh7 {[%clk 0:02:08.6]} 9. g4 {[%clk 0:02:16.3]} 9... b5 {[%clk 0:02:07.4]} 10.
a3 {[%clk 0:02:15.8]} 10... Bb7 {[%clk 0:02:07.2]} 11. d5 {[%clk 0:02:03.2]}
11... c6 {[%clk 0:01:58]} 12. g5 {[%clk 0:02:01.1]} 12... hxg5 {[%clk
0:01:56.4]} 13. Nxg5+ {[%clk 0:02:00.3]} 13... Kg8 {[%clk 0:01:56.7]} 14. Bg2
{[%clk 0:01:51.8]} 14... cxd5 {[%clk 0:01:12.8]} 15. exd5 {[%clk 0:01:43.3]}
15... Nbd7 {[%clk 0:01:07.9]} 16. Nge4 {[%clk 0:01:20.8]} 16... Rc8 {[%clk
0:00:45.9]} 17. Rd1 {[%clk 0:01:04.4]} 17... Rc4 {[%clk 0:00:34.3]} 18. Bh6
{[%clk 0:00:52.5]} 18... Nxe4 {[%clk 0:00:25.2]} 19. Nxe4 {[%clk 0:00:41.5]}
19... Rd4 {[%clk 0:00:25.4]} 20. Qe3 {[%clk 0:00:20.7]} 20... Rxd1+ {[%clk
0:00:23.4]} 21. Kxd1 {[%clk 0:00:21.6]} 21... Bxb2 {[%clk 0:00:19.7]} 22. Bxf8
{[%clk 0:00:21.2]} 22... Qxf8 {[%clk 0:00:20.6]} 23. Ng5 {[%clk 0:00:17.8]}
23... Bf6 {[%clk 0:00:19.1]} 24. h4 {[%clk 0:00:17.3]} 24... Ne5 {[%clk
0:00:15.2]} 25. h5 {[%clk 0:00:16.6]} 25... Ng4 {[%clk 0:00:13.4]} 26. Qf4
{[%clk 0:00:15.2]} 26... Bxg5 {[%clk 0:00:05.5]} 27. Qxg4 {[%clk 0:00:12.2]}
27... Bf6 {[%clk 0:00:04.7]} 28. hxg6 {[%clk 0:00:12]} 28... fxg6 {[%clk
0:00:03.2]} 29. Qe6+ {[%clk 0:00:09.8]} 29... Kg7 {[%clk 0:00:03]} 30. Be4
{[%clk 0:00:08.8]} 30... Bc8 {[%clk 0:00:03.1]} 31. Rh7+ {[%clk 0:00:02.9]}
31... Kxh7 {[%clk 0:00:03.2]} 32. Bxg6+ {[%clk 0:00:03]} 32... Kxg6 {[%clk
0:00:03.6]} 33. Qe4+ {[%clk 0:00:03.3]} 33... Bf5 {[%clk 0:00:04.2]} 34. Qg2+
{[%clk 0:00:03.2]} 34... Kf7 {[%clk 0:00:04.9]} 35. f4 {[%clk 0:00:02.1]} 35...
Bg6 {[%clk 0:00:05.8]} 36. Qf3 {[%clk 0:00:01.9]} 36... Bf5 {[%clk 0:00:06.1]}
37. Kd2 {[%clk 0:00:02.1]} 37... Qh6 {[%clk 0:00:06.1]} 38. Ke3 {[%clk
0:00:01.8]} 38... Qh3 {[%clk 0:00:06.6]} 0-1

[Event "Early-Titled-Tuesday-Blitz-March-26-2024"]
[Site "Chess.com"]
[Date "2024.03.26"]
[Round "9"]
[White "Josgar05"]
[Black "venturov"]
[Result "1/2-1/2"]
[WhiteElo "2375"]
[BlackElo "2514"]
[TimeControl "180+1"]
[EndTime "9:43:28 PDT"]
[Termination "Game drawn - insufficient material"]

1. Nf3 {[%clk 0:03:00.9]} 1... g6 {[%clk 0:03:00.1]} 2. d4 {[%clk 0:02:59.1]}
2... Nf6 {[%clk 0:02:58.1]} 3. e3 {[%clk 0:02:56.3]} 3... Bg7 {[%clk 0:02:58.1]}
4. b3 {[%clk 0:02:56.7]} 4... O-O {[%clk 0:02:58]} 5. Bb2 {[%clk 0:02:57.1]}
5... d6 {[%clk 0:02:58.5]} 6. c4 {[%clk 0:02:55.7]} 6... Nbd7 {[%clk 0:02:58.9]}
7. Be2 {[%clk 0:02:56.1]} 7... e5 {[%clk 0:02:59.3]} 8. dxe5 {[%clk 0:02:54.7]}
8... Ng4 {[%clk 0:02:59.5]} 9. O-O {[%clk 0:02:54.5]} 9... Ndxe5 {[%clk
0:02:59.6]} 10. Nxe5 {[%clk 0:02:50.1]} 10... Nxe5 {[%clk 0:03:00.5]} 11. Nc3
{[%clk 0:02:49.7]} 11... Bd7 {[%clk 0:02:56.8]} 12. Qd2 {[%clk 0:02:49.7]} 12...
a5 {[%clk 0:02:55.1]} 13. Rad1 {[%clk 0:02:46]} 13... Bc6 {[%clk 0:02:45.3]} 14.
Nd5 {[%clk 0:02:43.7]} 14... Bxd5 {[%clk 0:02:44.3]} 15. cxd5 {[%clk 0:02:42.1]}
15... Nd7 {[%clk 0:02:41]} 16. Bxg7 {[%clk 0:02:26.9]} 16... Kxg7 {[%clk
0:02:41.9]} 17. Rc1 {[%clk 0:02:27.5]} 17... Nc5 {[%clk 0:02:41.9]} 18. Rc4
{[%clk 0:02:27.8]} 18... f5 {[%clk 0:02:36.3]} 19. a3 {[%clk 0:02:27.1]} 19...
Qf6 {[%clk 0:02:24]} 20. b4 {[%clk 0:02:23.1]} 20... axb4 {[%clk 0:02:21.8]} 21.
axb4 {[%clk 0:02:24]} 21... Na6 {[%clk 0:02:16.3]} 22. Rfc1 {[%clk 0:02:23.9]}
22... Rf7 {[%clk 0:02:12]} 23. g3 {[%clk 0:02:22.3]} 23... Re8 {[%clk
0:01:57.6]} 24. R4c2 {[%clk 0:02:21.2]} 24... f4 {[%clk 0:01:32.9]} 25. exf4
{[%clk 0:02:12.9]} 25... Ree7 {[%clk 0:00:53.1]} 26. Bd3 {[%clk 0:02:04.1]}
26... Nb8 {[%clk 0:00:39.3]} 27. Bf1 {[%clk 0:01:58.8]} 27... h5 {[%clk
0:00:35]} 28. Bh3 {[%clk 0:01:58.8]} 28... Na6 {[%clk 0:00:31.4]} 29. Be6 {[%clk
0:01:58]} 29... Rf8 {[%clk 0:00:31.5]} 30. Rc4 {[%clk 0:01:53]} 30... h4 {[%clk
0:00:28.5]} 31. Qd4 {[%clk 0:01:47.9]} 31... Qxd4 {[%clk 0:00:23.8]} 32. Rxd4
{[%clk 0:01:47.5]} 32... c5 {[%clk 0:00:20.6]} 33. bxc5 {[%clk 0:01:40.4]} 33...
Nxc5 {[%clk 0:00:21.5]} 34. Rb1 {[%clk 0:01:29.1]} 34... Ra8 {[%clk 0:00:19.2]}
35. Rb6 {[%clk 0:01:25.8]} 35... Nxe6 {[%clk 0:00:15.5]} 36. dxe6 {[%clk
0:01:26.7]} 36... h3 {[%clk 0:00:16]} 37. Rbxd6 {[%clk 0:01:17.1]} 37... Rxe6
{[%clk 0:00:13]} 38. Rd7+ {[%clk 0:01:14.6]} 38... Kf6 {[%clk 0:00:05.8]} 39.
Rd1 {[%clk 0:01:14.7]} 39... Ra2 {[%clk 0:00:03.2]} 40. Rxb7 {[%clk 0:01:14]}
40... Ree2 {[%clk 0:00:03.1]} 41. Rd6+ {[%clk 0:01:04.1]} 41... Kf5 {[%clk
0:00:02.5]} 42. Rf7+ {[%clk 0:01:04.2]} 42... Kg4 {[%clk 0:00:01.5]} 43. f3+
{[%clk 0:00:49.4]} 43... Kxf3 {[%clk 0:00:01.2]} 44. Rd3+ {[%clk 0:00:49.5]}
44... Ke4 {[%clk 0:00:01.8]} 45. Rd1 {[%clk 0:00:48.4]} 45... Rg2+ {[%clk
0:00:02.1]} 46. Kf1 {[%clk 0:00:46]} 46... Raf2+ {[%clk 0:00:02.4]} 47. Ke1
{[%clk 0:00:45.9]} 47... Re2+ {[%clk 0:00:02.7]} 48. Kf1 {[%clk 0:00:45.8]}
48... Ref2+ {[%clk 0:00:03.2]} 49. Ke1 {[%clk 0:00:46.3]} 49... Re2+ {[%clk
0:00:03.2]} 50. Kf1 {[%clk 0:00:46.7]} 50... Rxh2 {[%clk 0:00:04.1]} 51. Re7+
{[%clk 0:00:46.5]} 51... Kf3 {[%clk 0:00:04.4]} 52. Rd3+ {[%clk 0:00:45.6]}
52... Kg4 {[%clk 0:00:03.2]} 53. Rxe2 {[%clk 0:00:45.6]} 53... Rxe2 {[%clk
0:00:03.1]} 54. Kxe2 {[%clk 0:00:45.8]} 54... h2 {[%clk 0:00:03.8]} 55. Rd1
{[%clk 0:00:45.5]} 55... Kxg3 {[%clk 0:00:04.7]} 56. Ke3 {[%clk 0:00:45.1]}
56... Kg2 {[%clk 0:00:05]} 57. Ke4 {[%clk 0:00:44.8]} 57... h1=Q {[%clk
0:00:05]} 58. Rxh1 {[%clk 0:00:44.8]} 58... Kxh1 {[%clk 0:00:05.9]} 59. Ke5
{[%clk 0:00:44.9]} 59... Kg2 {[%clk 0:00:06.6]} 60. Kf6 {[%clk 0:00:45.3]} 60...
Kf3 {[%clk 0:00:07.1]} 61. Kg5 {[%clk 0:00:45.9]} 61... Ke4 {[%clk 0:00:07.3]}
62. Kxg6 {[%clk 0:00:45.8]} 62... Kxf4 {[%clk 0:00:07.7]} 1/2-1/2

[Event "Early-Titled-Tuesday-Blitz-March-26-2024"]
[Site "Chess.com"]
[Date "2024.03.26"]
[Round "9"]
[White "MyDream003"]
[Black "Matrix3x3a"]
[Result "0-1"]
[WhiteElo "2784"]
[BlackElo "2637"]
[TimeControl "180+1"]
[EndTime "9:43:30 PDT"]
[Termination "Matrix3x3a won on time"]

1. Nf3 {[%clk 0:02:46.7]} 1... Nf6 {[%clk 0:02:59.5]} 2. c4 {[%clk 0:02:45.7]}
2... c5 {[%clk 0:02:58.8]} 3. Nc3 {[%clk 0:02:45.5]} 3... Nc6 {[%clk 0:02:58.2]}
4. g3 {[%clk 0:02:43]} 4... d5 {[%clk 0:02:56.9]} 5. cxd5 {[%clk 0:02:43.9]}
5... Nxd5 {[%clk 0:02:57.2]} 6. Bg2 {[%clk 0:02:43.8]} 6... Nc7 {[%clk
0:02:56.9]} 7. O-O {[%clk 0:02:43.7]} 7... e5 {[%clk 0:02:55.7]} 8. d3 {[%clk
0:02:43.7]} 8... Be7 {[%clk 0:02:48.5]} 9. Nd2 {[%clk 0:02:44.1]} 9... Be6
{[%clk 0:02:41.1]} 10. Bxc6+ {[%clk 0:02:32.1]} 10... bxc6 {[%clk 0:02:42]} 11.
b3 {[%clk 0:02:30.7]} 11... O-O {[%clk 0:02:39.4]} 12. Ba3 {[%clk 0:02:28.8]}
12... Nb5 {[%clk 0:02:30.6]} 13. Bb2 {[%clk 0:02:27.9]} 13... f5 {[%clk
0:02:21.5]} 14. Nxb5 {[%clk 0:02:25.4]} 14... cxb5 {[%clk 0:02:20.8]} 15. Bxe5
{[%clk 0:02:25.5]} 15... a5 {[%clk 0:02:13.5]} 16. a4 {[%clk 0:02:15.9]} 16...
Qd5 {[%clk 0:02:05]} 17. f4 {[%clk 0:02:13.2]} 17... c4 {[%clk 0:01:52.8]} 18.
bxc4 {[%clk 0:02:08.3]} 18... bxc4 {[%clk 0:01:51.5]} 19. Nxc4 {[%clk
0:02:08.2]} 19... Bc5+ {[%clk 0:01:50.9]} 20. e3 {[%clk 0:02:06.4]} 20... Rfd8
{[%clk 0:01:44.1]} 21. d4 {[%clk 0:01:38.3]} 21... Ba7 {[%clk 0:01:28.6]} 22.
Nd2 {[%clk 0:01:29.9]} 22... Rac8 {[%clk 0:01:27.7]} 23. Qf3 {[%clk 0:01:21.7]}
23... Qd7 {[%clk 0:01:20.6]} 24. Rfc1 {[%clk 0:01:20.3]} 24... Bd5 {[%clk
0:01:17.8]} 25. Qf2 {[%clk 0:01:19]} 25... Ba8 {[%clk 0:01:12.3]} 26. h3 {[%clk
0:01:19]} 26... Rc6 {[%clk 0:01:04.9]} 27. Kh2 {[%clk 0:01:05]} 27... Rdc8
{[%clk 0:00:59]} 28. Nb3 {[%clk 0:00:56.4]} 28... Rxc1 {[%clk 0:00:54.3]} 29.
Nxc1 {[%clk 0:00:49.3]} 29... Qc6 {[%clk 0:00:52.6]} 30. Nd3 {[%clk 0:00:43]}
30... Qe4 {[%clk 0:00:38.2]} 31. Rd1 {[%clk 0:00:41.7]} 31... Rc3 {[%clk
0:00:31.8]} 32. Nc1 {[%clk 0:00:21.4]} 32... Rxe3 {[%clk 0:00:21.9]} 33. h4
{[%clk 0:00:10.6]} 33... Bd5 {[%clk 0:00:21.8]} 34. h5 {[%clk 0:00:10.1]} 34...
Kf7 {[%clk 0:00:19.7]} 35. h6 {[%clk 0:00:09.3]} 35... gxh6 {[%clk 0:00:19.2]}
36. Rf1 {[%clk 0:00:07.6]} 36... Rc3 {[%clk 0:00:17.4]} 37. Kh3 {[%clk
0:00:02.6]} 37... Rc2 {[%clk 0:00:17.4]} 38. Qg1 {[%clk 0:00:03]} 38... Kg6
{[%clk 0:00:17]} 39. Rf2 {[%clk 0:00:01.7]} 39... Rxf2 {[%clk 0:00:14.2]} 40.
Qxf2 {[%clk 0:00:02.2]} 40... Qh1+ {[%clk 0:00:14.8]} 41. Qh2 {[%clk 0:00:02.5]}
41... Bg2+ {[%clk 0:00:15.2]} 0-1

[Event "Early-Titled-Tuesday-Blitz-March-26-2024"]
[Site "Chess.com"]
[Date "2024.03.26"]
[Round "9"]
[White "baki83"]
[Black "Grischuk"]
[Result "1/2-1/2"]
[WhiteElo "2894"]
[BlackElo "3067"]
[TimeControl "180+1"]
[EndTime "9:43:31 PDT"]
[Termination "Game drawn by agreement"]

1. e4 {[%clk 0:03:00.9]} 1... e5 {[%clk 0:02:57.3]} 2. Nf3 {[%clk 0:03:01.2]}
2... Nc6 {[%clk 0:02:57.1]} 3. Bb5 {[%clk 0:03:01.3]} 3... a6 {[%clk 0:02:56.1]}
4. Ba4 {[%clk 0:03:01.6]} 4... Bc5 {[%clk 0:02:56.1]} 5. c3 {[%clk 0:03:01.5]}
5... Nge7 {[%clk 0:02:52.7]} 6. d4 {[%clk 0:03:01.6]} 6... exd4 {[%clk
0:02:52.9]} 7. cxd4 {[%clk 0:03:02.3]} 7... Bb4+ {[%clk 0:02:53.5]} 8. Nc3
{[%clk 0:03:02.6]} 8... d5 {[%clk 0:02:53.3]} 9. O-O {[%clk 0:03:02.8]} 9...
dxe4 {[%clk 0:02:51.4]} 10. Nxe4 {[%clk 0:02:55.4]} 10... O-O {[%clk 0:02:51.5]}
11. a3 {[%clk 0:02:50.1]} 11... Bd6 {[%clk 0:02:50.4]} 12. Bg5 {[%clk
0:02:49.4]} 12... f6 {[%clk 0:02:32.3]} 13. Bb3+ {[%clk 0:02:43.8]} 13... Kh8
{[%clk 0:02:31.8]} 14. Bh4 {[%clk 0:02:43.3]} 14... Bg4 {[%clk 0:02:28.2]} 15.
Ba2 {[%clk 0:02:35.2]} 15... Nf5 {[%clk 0:02:23.3]} 16. Bg3 {[%clk 0:02:23.1]}
16... Nfxd4 {[%clk 0:02:16.2]} 17. Nxd6 {[%clk 0:02:14.2]} 17... cxd6 {[%clk
0:02:05.6]} 18. Bd5 {[%clk 0:02:14.6]} 18... Rc8 {[%clk 0:01:55.6]} 19. Bxc6
{[%clk 0:01:54]} 19... Nxc6 {[%clk 0:01:54.6]} 20. h3 {[%clk 0:01:50.5]} 20...
Bxf3 {[%clk 0:01:49.7]} 21. Qxf3 {[%clk 0:01:51.4]} 21... Qe7 {[%clk 0:01:45.4]}
22. Rad1 {[%clk 0:01:38.3]} 22... Ne5 {[%clk 0:01:39.4]} 23. Qb3 {[%clk
0:01:27.3]} 23... Rc6 {[%clk 0:01:24.1]} 24. Rd5 {[%clk 0:01:23.4]} 24... h6
{[%clk 0:01:22]} 25. Rfd1 {[%clk 0:01:23.7]} 25... Rfc8 {[%clk 0:01:20.6]} 26.
Kh2 {[%clk 0:01:24]} 26... b5 {[%clk 0:01:16.8]} 27. Qe3 {[%clk 0:01:22]} 27...
Qc7 {[%clk 0:01:13.5]} 28. Qe4 {[%clk 0:01:18.2]} 28... Nc4 {[%clk 0:01:07]} 29.
b3 {[%clk 0:01:13.3]} 29... Ne5 {[%clk 0:01:03.9]} 30. Qf5 {[%clk 0:01:07.3]}
30... Re8 {[%clk 0:01:00.7]} 31. Qh5 {[%clk 0:00:59.1]} 31... Re6 {[%clk
0:00:45.3]} 32. Qf5 {[%clk 0:00:38.9]} 32... Qe7 {[%clk 0:00:44.1]} 33. Bf4
{[%clk 0:00:37.7]} 33... Rc3 {[%clk 0:00:33.1]} 34. Qb1 {[%clk 0:00:22.6]} 34...
Nf7 {[%clk 0:00:28.7]} 35. Bg3 {[%clk 0:00:20.9]} 35... Rc6 {[%clk 0:00:24.2]}
36. a4 {[%clk 0:00:21]} 36... bxa4 {[%clk 0:00:22.3]} 37. bxa4 {[%clk
0:00:21.9]} 37... Rc5 {[%clk 0:00:15.3]} 38. Bxd6 {[%clk 0:00:11.4]} 38... Rxd6
{[%clk 0:00:10.8]} 39. Qb8+ {[%clk 0:00:10.8]} 39... Kh7 {[%clk 0:00:08.1]} 40.
Rxd6 {[%clk 0:00:11.3]} 40... Nxd6 {[%clk 0:00:04.3]} 41. Qxd6 {[%clk
0:00:10.6]} 41... Qe5+ {[%clk 0:00:03.3]} 42. Qxe5 {[%clk 0:00:09.9]} 42... Rxe5
{[%clk 0:00:04.2]} 43. Rd6 {[%clk 0:00:09.7]} 43... a5 {[%clk 0:00:04.5]} 44.
Rd4 {[%clk 0:00:09.6]} 44... g5 {[%clk 0:00:03.7]} 45. Kg3 {[%clk 0:00:08.1]}
1/2-1/2

[Event "Early-Titled-Tuesday-Blitz-March-26-2024"]
[Site "Chess.com"]
[Date "2024.03.26"]
[Round "9"]
[White "ChempionBg"]
[Black "abelmat"]
[Result "1-0"]
[WhiteElo "2323"]
[BlackElo "2064"]
[TimeControl "180+1"]
[EndTime "9:43:32 PDT"]
[Termination "ChempionBg won on time"]

1. d4 {[%clk 0:02:43.2]} 1... Nf6 {[%clk 0:02:59.8]} 2. c4 {[%clk 0:02:37.3]}
2... e6 {[%clk 0:02:59.2]} 3. Nf3 {[%clk 0:02:30.1]} 3... d5 {[%clk 0:03:00.1]}
4. g3 {[%clk 0:02:28.4]} 4... Be7 {[%clk 0:02:59.7]} 5. Bg2 {[%clk 0:02:28.2]}
5... O-O {[%clk 0:03:00.1]} 6. O-O {[%clk 0:02:28.8]} 6... dxc4 {[%clk
0:03:00.2]} 7. Ne5 {[%clk 0:02:28.5]} 7... Nc6 {[%clk 0:02:59.7]} 8. Bxc6 {[%clk
0:02:26.8]} 8... bxc6 {[%clk 0:03:00.6]} 9. Nxc6 {[%clk 0:02:27.3]} 9... Qe8
{[%clk 0:02:55.4]} 10. Nxe7+ {[%clk 0:02:27.2]} 10... Qxe7 {[%clk 0:02:56]} 11.
Qc2 {[%clk 0:02:25.4]} 11... Ba6 {[%clk 0:02:54.7]} 12. Bf4 {[%clk 0:02:21.1]}
12... Nd5 {[%clk 0:02:52.5]} 13. Bd2 {[%clk 0:02:10.7]} 13... Rab8 {[%clk
0:02:46.8]} 14. Na3 {[%clk 0:02:08.7]} 14... Qf6 {[%clk 0:02:23.5]} 15. e4
{[%clk 0:01:47.5]} 15... Nb4 {[%clk 0:02:13.6]} 16. Qa4 {[%clk 0:01:38.8]} 16...
c5 {[%clk 0:00:35.8]} 17. dxc5 {[%clk 0:01:14.8]} 17... Qf3 {[%clk 0:00:28.5]}
18. Bxb4 {[%clk 0:01:08.9]} 18... Rxb4 {[%clk 0:00:25.7]} 19. Qxb4 {[%clk
0:01:02.5]} 19... Qxe4 {[%clk 0:00:24]} 20. f3 {[%clk 0:00:56.6]} 20... Qe3+
{[%clk 0:00:21.5]} 21. Rf2 {[%clk 0:00:55.2]} 21... h6 {[%clk 0:00:17.4]} 22.
Re1 {[%clk 0:00:50.3]} 22... Qd4 {[%clk 0:00:15.4]} 23. Nc2 {[%clk 0:00:41.7]}
23... Qd5 {[%clk 0:00:12.7]} 24. Qa5 {[%clk 0:00:27.1]} 24... Bb7 {[%clk
0:00:11.5]} 25. Nb4 {[%clk 0:00:24]} 25... Qd4 {[%clk 0:00:08]} 26. c6 {[%clk
0:00:21.2]} 26... Ba8 {[%clk 0:00:05.9]} 27. Qe5 {[%clk 0:00:18.2]} 27... Qb6
{[%clk 0:00:04.8]} 28. Qc3 {[%clk 0:00:12.7]} 28... Rb8 {[%clk 0:00:03.9]} 29.
a3 {[%clk 0:00:10.8]} 29... a5 {[%clk 0:00:03.8]} 30. Nc2 {[%clk 0:00:09.9]}
30... Qxc6 {[%clk 0:00:03.9]} 31. Ne3 {[%clk 0:00:08.3]} 31... Rb3 {[%clk
0:00:03.6]} 32. Qxc4 {[%clk 0:00:07.9]} 32... Qb7 {[%clk 0:00:03.4]} 33. Qc5
{[%clk 0:00:06.9]} 33... Kh7 {[%clk 0:00:02.8]} 34. Qc2+ {[%clk 0:00:05.9]}
34... g6 {[%clk 0:00:02]} 35. Nc4 {[%clk 0:00:05.2]} 35... Rb5 {[%clk
0:00:01.1]} 36. Nd6 {[%clk 0:00:05]} 1-0